Workbook

Sheet CENTRAL MICRO (hidden)
B1: call | C1: call
B2: Kroonstad | C2: Pelonomi | D2: Welkom | J2: Average | K2: Low | L2: High
A3: Micro
A4: Acinetobacter ba | B4: 13
A5: Citrobacter freu | B5: 5
A6: Enterobacter aer | B6: 1
A7: Enterobacter agg | B7: 2
A8: Enterobacter clo | B8: 7
A9: Enterobacter spe | B9: 13
A10: Escherichia coli | B10: 101
A11: Klebsiella oxyto | B11: 15
A12: Klebsiella speci | B12: 81
A13: Proteus mirabili | B13: 46
A14: Proteus vulgaris | B14: 13
A15: Providencia rett | B15: 1
A16: Pseudomonas aeru | B16: 41
A17: Pseudomonas cepa | B17: 1
A18: Serratia liquefa | B18: 1
A19: Serratia marcesc | B19: 5
A20: Serratia odorife | B20: 5
A21: Shigella flexner | B21: 1
A22: GN (Gram negative bacilli) | B22: =SUM(B4:B21) -> 352 | C22: -500 | D22: 220
A23: Staphylococcus a | B23: 127
A24: Streptococcus pn | B24: 9
A25: GP (Gram poitives cocci) | B25: =SUM(B23:B24) -> 136 | C25: -350 | D25: 162
A29: No of analytes
A31: Total | B31: =SUM(B3:B27) -> 976 | C31: -850 | D31: 382 | E31: 0 | F31: 0 | G31: 0 | H31: 0 | I31: 0 | J31: =AVERAGE(B31:I31) -> 64 | K31: =MIN(B31:I31) -> -850 | L31: =MAX(B31:I31) -> 976

Sheet KZN BLOOD CULTURE TENDER
C1: KZN LABORATORIES
A2: Blood Culture tender | B2: LAB NAME | D2: Monthly averageAverage | E2: Total per Annum | AE2: Monthly averageAverage | AF2: Total per Annum
B3: Hlabisa | C3: 1524 | D3: 127 | E3: 1524
B4: Vryheid | C4: 756 | D4: 63 | E4: 756
B5: Inkosi Albert Luthulli Central hospital | C5: 15444 | D5: 1287 | E5: 15444
B6: King edward Hospital Micro TB | C6: 900 | D6: 75 | E6: 900
B7: King edward Hospital Micro | C7: 14400 | D7: 1200 | E7: 14400
B8: Eshowe | C8: 6600 | D8: 550 | E8: 6600
B9: General Justice Gizenga Mpanza | C9: 11400 | D9: 950 | E9: 11400
B10: Queen Nandi Regional Hospital | C10: 6415 | D10: 534 | E10: 6415
B11: Ngwelezane | C11: 8400 | D11: 700 | E11: 8400
B12: Port Shepston | C12: 11686 | D12: 989 | E12: 11686
B13: Ladysmith | C13: 3180 | D13: 265 | E13: 3180
B14: Madadeni | C14: 288 | D14: 24 | E14: 288
B15: Northdale | C15: 25080 | D15: 2090 | E15: 25080
B16: King Dinizulu Hospital | C16: 1717 | D16: 143 | E16: 1717
B17: R.K. Khan Hospital | C17: 9576 | D17: 798 | E17: 9576
B18: MGHM | C18: 7056 | D18: 588 | E18: 7056
B19: Prince Mshiyeni | C19: 14436 | D19: 1203 | E19: 14436
B20: Addington | C20: 7536 | D20: 628 | E20: 7536
B21: Dr. Pixley Ka Isaka Seme | D21: 220 | E21: 2640
B22: KZN TOTAL | D22: =SUM(D3:D21) -> 12434 | E22: =SUM(E3:E21) -> 149034
AA53: 260 | AD53: 260 | AE53: =AVERAGE(C53:AD53) -> 260
AA54: 646 | AD54: 646 | AE54: 646
AA55: 306 | AD55: 306 | AE55: 306
AA56: 248 | AD56: 248 | AE56: 248
AA57: 45 | AD57: 45 | AE57: 45
AA58: 75 | AD58: 75 | AE58: 75
X59: 1370 | AA59: 3000 | AD59: 3000 | AE59: 2457 | AK59: =V69/30 -> 8285.5
X60: 1209 | AA60: 2300 | AD60: 2300 | AE60: 1936
X61: 567 | AA61: 2000 | AD61: 2000 | AE61: 1522
X62: 29 | AA62: 55 | AD62: 55 | AE62: 46
AA63: 164 | AD63: 164 | AE63: 164
AA64: 155 | AD64: 155 | AE64: 155
AA65: 120 | AD65: 120 | AE65: 120
AA66: 94 | AD66: 94 | AE66: 94
AA67: 120 | AD67: 120 | AE67: 120
W68: 5 | X68: 53 | AA68: 46 | AD68: 46 | AE68: 38
C69: 28201 | D69: 19607 | E69: 19000 | F69: 17077 | G69: 17239 | H69: 18558 | I69: 47315 | J69: 35620 | K69: 18200 | L69: 12724 | M69: 22090 | N69: 42728 | O69: 13544 | P69: 15047 | Q69: 19616 | R69: 45037 | S69: 55602 | T69: 76517 | U69: 80930 | V69: 248565 | W69: 88326 | X69: 86147 | Y69: 227990 | Z69: 60295 | AA69: 73929 | AB69: 42263 | AC69: 71112 | AD69: 112089 | AE69: 57692 | AF69: =MIN(C69:R69) -> 12724
C70: =C69/30 -> 940.0333333 | D70: =D69/30 -> 653.5666667 | E70: 633.3333333 | F70: 569.2333333 | G70: 574.6333333 | H70: 618.6 | I70: 1577.166667 | J70: 1187.333333 | K70: 606.6666667 | L70: 424.1333333 | M70: 736.3333333 | N70: 1424.266667 | O70: 451.4666667 | P70: 501.5666667 | Q70: 653.8666667 | R70: =R69/30 -> 1501.233333 | S70: =S69/30 -> 1853.4 | T70: =T69/30 -> 2550.566667 | U70: 2697.666667 | V70: =V69/30 -> 8285.5 | W70: =W69/30 -> 2944.2 | X70: =X69/30 -> 2871.566667 | Y70: 2040 | Z70: 2009.833333 | AA70: 2464.3 | AB70: 1408.766667 | AC70: =AC69/30 -> 2370.4 | AD70: 3145 | AE70: 1923.057143 | AF70: 424.1333333

Sheet FREESTATE
A1: Blood Culture tender | B1: LAB NAME | D1: Monthly averageAverage | E1: Total per Annum
B3: Pelonomi | C3: 9543 | D3: 732 | E3: 9543
B4: Welkom | C4: 3789 | D4: 291 | E4: 3789
B5: Kroonstad | C5: 4677 | D5: 390 | E5: 4677
B6: Bethlehem | C6: 1259 | D6: 97 | E6: 1259
B7: Manapo | C7: 1348 | D7: 104 | E7: 1348
B8: TOTAL | D8: =SUM(D2:D7) -> 1614 | E8: =SUM(E3:E7) -> 20616

Sheet WESTERN-NORTHERN CAPE
A1: Blood Culture tender | B1: LAB NAME | D1: Monthly averageAverage | E1: Total per Annum
B2: GEORGE LABORATORY | D2: 900 | E2: 10800
B3: GROOTE SCHUUR LABORATORY | D3: 4000 | E3: 48000
B4: KIMBERLEY LABORATORY | D4: 610 | E4: 7320
B5: TYGERBERG LABORATORY | D5: 4500 | E5: 54000
B6: UPINGTON LABORATORY | D6: 160 | E6: 1920
B8: TOTAL | D8: =SUM(D2:D7) -> 10170 | E8: =SUM(E3:E7) -> 111240

Sheet GAUTENG
A1: Blood Culture tender | B1: LAB NAME | D1: Monthly averageAverage | E1: Total per Annum
B2: Charlotte Maxeke | C2: 36000 | D2: 3000 | E2: 36000
B3: Helen Joseph | C3: 33000 | D3: 2750 | E3: 33000
B4: Chris Hani Baragwanath | C4: 66209 | D4: 5518 | E4: 66209
B5: Dr George Mukhari | C5: 23063 | D5: 1922 | E5: 23063
B6: Tshwane Academic Division | C6: 47088 | D6: 3924 | E6: 47088
B7: Tambo Memorial | C7: 28923 | D7: 2410 | E7: 28923
B8: Total | D8: =SUM(D2:D7) -> 19524 | E8: =SUM(E2:E7) -> 234283
B18: TOTAL | D18: =SUM(D2:D17) -> 39048 | E18: =SUM(E3:E17) -> 432566

Sheet LIMPOPO-MPUMALANGA
A1: Blood Culture tender | B1: LAB NAME | D1: Monthly averageAverage | E1: Total per Annum
B2: ERMELO LABORATORY | D2: 280 | E2: 3360
B3: POLOKWANE LABORATORY | D3: 1328 | E3: 15936
B4: ROB FERREIRA LABORATORY | D4: 1312 | E4: 15744
B5: WITBANK LABORATORY | D5: 526 | E5: 6314
B7: TOTAL | D7: =SUM(D2:D6) -> 3446 | E7: =SUM(E3:E6) -> 37994

Sheet EASTERN CAPE
A1: Blood Culture tender | B1: LAB NAME | D1: Monthly averageAverage | E1: Total per Annum
B2: Port Elizabeth Micro | D2: 3000 | E2: 36000
B3: East London Micro | D3: 850 | E3: 10200
B4: Nelson mandela Academic Micro | D4: 2100 | E4: 25200
B6: TOTAL | D6: 5950 | E6: 35400

Sheet NORTHWEST
A1: Blood Culture tender | B1: LAB NAME | D1: Monthly averageAverage | E1: Total per Annum
B2: Rustenburg | D2: 720 | E2: 8640
B3: Tshepong Culture Aerobic | D3: 989 | E3: 11868
B4: Tshepong R/M Bld Cult Aerobic No Growth | D4: 968 | E4: 11616
B5: Mafikeng | D5: 167 | E5: 2004
B7: TOTAL | D7: =SUM(D2:D6) -> 2844 | E7: =SUM(E3:E6) -> 25488

Sheet KZN CHEM LARGE (hidden)
B1: 24 | C1: 24 | D1: 24 | E1: 24 | F1: 24 | G1: 24
B2: RKK | C2: PMMH | D2: Addington | E2: Edendale | F2: MGMH | G2: Ngwelezane
A3: UEC
A4: Sodium | B4: 10239 | C4: 9483 | D4: 9823 | E4: 6631 | F4: 6000 | G4: 5200
A5: Potassium | B5: 10239 | C5: 9481 | D5: 9820 | E5: 6631 | F5: 6000 | G5: 5200
A6: Chloride | B6: 10239 | C6: 9750 | D6: 9942 | E6: 6631 | F6: 6000 | G6: 5200
A7: Bicarbonate | B7: 10239 | C7: 9459 | D7: 9810 | E7: 6631 | F7: 6000 | G7: 5200
A8: Urea | B8: 10239 | E8: 6631 | F8: 6000 | G8: 5200
A9: Creatinine | B9: 10239 | C9: 10663 | D9: 10491 | E9: 6631 | F9: 6000 | G9: 5200
A10: LFT
A11: T Prot | B11: 6700 | C11: 6906 | D11: 6352 | E11: 3501 | F11: 3200 | G11: 4100
A12: Alb | B12: 6700 | C12: 6601 | D12: 6146 | E12: 4373 | F12: 3200 | G12: 4100
A13: T Bil | B13: 6700 | C13: 6593 | D13: 6265 | E13: 3718 | F13: 3346 | G13: 4100
A14: D Bil | B14: 300 | E14: 3496 | F14: 520 | G14: 173
A15: ALP | B15: 6700 | C15: 6460 | D15: 6138 | E15: 4826 | F15: 3200 | G15: 4100
A16: AST | B16: 127
A17: ALT | B17: 6700 | C17: 8214 | D17: 6470 | E17: 3493 | F17: 3500 | G17: 4900
A18: GGT | B18: 6700 | C18: 6460 | D18: 6137 | E18: 3493 | F18: 3200 | G18: 4100
A19: Misc
A20: Glucose | B20: 1330 | C20: 1053 | D20: 4155 | E20: 299 | F20: 750 | G20: 220
A21: CRP | G21: 63
A22: UA | B22: 800 | C22: 550 | D22: 787 | E22: 377 | F22: 250 | G22: 140
A23: Lactate | B23: 54 | C23: 27 | D23: 221 | E23: 121 | G23: 25
A24: BhCG
A25: CSF/U Prot | B25: 185 | E25: 68 | F25: 250 | G25: 240
A26: Trop T | B26: 400 | F26: 370 | G26: 75
A27: D-Dimer
A28: CMP
A29: Calcium | B29: 1950 | C29: 2882 | D29: 723 | E29: 2457 | F29: 1300 | G29: 1200
A30: Magnesium | B30: 1950 | C30: 2456 | D30: 634 | E30: 2466 | F30: 1300 | G30: 1200
A31: Phos | B31: 1950 | C31: 2444 | D31: 701 | E31: 2442 | F31: 1300 | G31: 1200
A32: Lipids
A33: Chol | B33: 930 | C33: 822 | D33: 509 | E33: 472 | F33: 420 | G33: 900
A34: Trig | B34: 930 | C34: 668 | D34: 53 | E34: 442 | F34: 380 | G34: 700
A35: HDL | B35: 930 | C35: 1057 | D35: 321 | F35: 370 | G35: 2
A36: Enzymes
A37: Amyl | C37: 342 | D37: 443 | E37: 294 | F37: 500 | G37: 500
A38: LDH | C38: 1057 | D38: 321 | E38: 3497 | F38: 90 | G38: 340
A39: CK | C39: 94 | D39: 634 | E39: 129 | F39: 420 | G39: 100
A40: CK-MB | F40: 120
A41: Gas
A42: Gas
A43: Drugs
A44: Acetamino | B44: 50 | F44: 80
A45: Cannabis
A46: Carbamaze | B46: 53
A47: Phenobarb | B47: 12
A48: Phenytoin | B48: 37 | D48: 39
A49: Theoph
A50: VPA | B50: 118
A51: Tricylic AD
A52: Other
A53: HbA1C | B53: 400 | F53: 400
A54: CO2 Content
A55: Cholinesterase
A56: Lipase
A58: No of analytes
A60: Total | B60: =SUM(B3:B56) -> 114140 | C60: =SUM(C4:C59) -> 103522 | D60: =SUM(D4:D59) -> 96935 | E60: =SUM(E3:E56) -> 79750 | F60: =SUM(F3:F56) -> 64466 | G60: =SUM(G3:G56) -> 63678
